fUST/lending_fUST_20250218
["ID","MTS","AMOUNT","RATE_DAILY","PERIOD"]
[353488317,1739878237192,-258.11,0.00013986,2]
[353488318,1739878237201,-177.92,0.00013986,2]
[353488319,1739878237211,-500.0,0.00013986,2]
[353488320,1739878237221,-192.07,0.00013986,2]
[353488321,1739878237230,-500.0,0.00013986,2]
[353488322,1739878237240,-200.4,0.00013986,2]
[353488323,1739878237249,-375.53,0.00013986,2]
[353488324,1739878237259,-1580.5,0.00013986,2]
[353488325,1739878237268,-500.0,0.00013986,2]
[353488326,1739878237277,-500.0,0.00013986,2]
[353488327,1739878237287,-254.33,0.00013986,2]
[353488328,1739878237297,-500.0,0.00013986,2]
[353488329,1739878237306,-509.9,0.00013986,2]
[353488330,1739878237315,-500.0,0.00013986,2]
[353488331,1739878237324,-500.0,0.00013986,2]
[353488332,1739878237334,-451.56,0.00013986,2]
[353488333,1739878237344,-485.23,0.00013986,2]
[353488334,1739878237353,-500.0,0.00013986,2]
[353488335,1739878237363,-587.19,0.00013986,2]
[353488336,1739878237373,-1303.66,0.00013986,2]
[353488337,1739878237382,-160.94,0.00013986,2]
[353488338,1739878237391,-500.0,0.00013986,2]
[353488339,1739878237401,-233.64,0.00013986,2]
[353488340,1739878237410,-500.0,0.00013986,2]
[353488341,1739878237419,-500.0,0.00013986,2]
[353488342,1739878237428,-500.0,0.00013986,2]
[353488343,1739878237438,-500.0,0.00013986,2]
[353488344,1739878237447,-500.0,0.00013986,2]
[353488345,1739878237457,-500.0,0.00013986,2]
[353488346,1739878237468,-500.0,0.00013986,2]
[353488347,1739878237478,-500.0,0.00013986,2]
[353488348,1739878237488,-500.0,0.00013986,2]
[353488349,1739878237498,-500.0,0.00013986,2]
[353488350,1739878237507,-500.0,0.00013986,2]
[353488351,1739878237519,-500.0,0.00013986,2]
[353488352,1739878237529,-500.0,0.00013986,2]
[353488353,1739878237547,-500.0,0.00013986,2]
[353488354,1739878237557,-500.0,0.00013986,2]
[353488355,1739878237566,-500.0,0.00013986,2]
[353488356,1739878237575,-519.87,0.00013986,2]
[353488357,1739878237584,-500.0,0.00013986,2]
[353488358,1739878237594,-500.0,0.00013986,2]
[353488359,1739878237603,-500.0,0.00013986,2]
[353488360,1739878237613,-500.0,0.00013986,2]
[353488361,1739878237623,-500.0,0.00013986,2]
[353488362,1739878237632,-500.0,0.00013986,2]
[353488363,1739878237641,-522.75281628,0.00013986,2]
[353488364,1739878237650,-500.0,0.00013986,2]
[353488365,1739878237660,-500.0,0.00013986,2]
[353488366,1739878237670,-500.0,0.00013986,2]
[353488367,1739878237679,-500.0,0.00013986,2]
[353488368,1739878237689,-500.0,0.00013986,2]
[353488369,1739878237699,-500.0,0.00013986,2]
[353488370,1739878237708,-500.0,0.00013986,2]
[353488371,1739878237717,-500.0,0.00013986,2]
[353488372,1739878237727,-500.0,0.00013986,2]
[353488373,1739878237737,-500.0,0.00013986,2]
[353488374,1739878237746,-500.0,0.00013986,2]
[353488375,1739878237756,-500.0,0.00013986,2]
[353488376,1739878237765,-500.0,0.00013986,2]
[353488377,1739878237775,-500.0,0.00013986,2]
[353488378,1739878237784,-631.48,0.00013986,2]
[353488379,1739878237794,-500.0,0.00013986,2]
[353488380,1739878237803,-500.0,0.00013986,2]
[353488381,1739878237813,-500.0,0.00013986,2]
[353488382,1739878237822,-500.0,0.00013986,2]
[353488383,1739878237831,-500.0,0.00013986,2]
[353488384,1739878237841,-524.73127876,0.00013986,2]
[353488385,1739878237850,-1305.31,0.00013986,2]
[353488386,1739878237860,-500.0,0.00013986,2]
[353488387,1739878237870,-500.0,0.00013986,2]
[353488388,1739878237879,-500.0,0.00013986,2]
[353488389,1739878237891,-500.0,0.00013986,2]
[353488390,1739878237901,-500.0,0.00013986,2]
[353488391,1739878237911,-576.34,0.00013986,2]
[353488392,1739878237921,-500.0,0.00013986,2]
[353488393,1739878237930,-500.0,0.00013986,2]
[353488394,1739878237939,-504.50185385,0.00013986,2]
[353488395,1739878237949,-500.0,0.00013986,2]
[353488396,1739878237959,-500.0,0.00013986,2]
[353488397,1739878237969,-500.0,0.00013986,2]
[353488398,1739878237978,-500.0,0.00013986,2]
[353488399,1739878237988,-500.0,0.00013986,2]
[353488400,1739878237997,-500.0,0.00013986,2]
[353488401,1739878238007,-500.0,0.00013986,2]
[353488402,1739878238016,-500.0,0.00013986,2]
[353488403,1739878238025,-547.00765925,0.00013986,2]
[353488404,1739878238035,-199.23926275,0.00013986,2]
[353488406,1739878238044,-500.0,0.00013986,2]
[353488407,1739878238053,-500.0,0.00013986,2]
[353488408,1739878238062,-500.0,0.00013986,2]
[353488409,1739878238071,-500.0,0.00013986,2]
[353488410,1739878238081,-505.08567262,0.00013986,2]
[353488411,1739878238091,-500.0,0.00013986,2]
[353488412,1739878238100,-500.0,0.00013986,2]
[353488413,1739878238111,-500.0,0.00013986,2]
[353488414,1739878238120,-500.0,0.00013986,2]
[353488415,1739878238129,-532.06,0.00013986,2]
[353488416,1739878238138,-500.0,0.00013986,2]
[353488417,1739878238147,-500.0,0.00013986,2]
[353488418,1739878238156,-161.44,0.00013987,2]
[353488419,1739878238166,-500.0,0.00014067,2]
[353488420,1739878238175,-500.0,0.00014067,2]
[353488421,1739878238185,-500.0,0.00014067,2]
[353488422,1739878238194,-500.0,0.00014067,2]
[353488423,1739878238203,-500.0,0.00014067,2]
[353488424,1739878238213,-502.83508631,0.00014067,2]
[353488425,1739878238223,-500.0,0.00014067,2]
[353488426,1739878238232,-500.0,0.00014067,2]
[353488427,1739878238241,-500.0,0.00014067,2]
[353488428,1739878238251,-500.0,0.00014067,2]
[353488429,1739878238260,-419.88,0.00014068,2]
[353488430,1739878238270,-1580.5,0.00014068,2]
[353488431,1739878238279,-500.0,0.00014068,2]
[353488432,1739878238288,-500.0,0.00014068,2]
[353488433,1739878238297,-587.19,0.00014068,2]
[353488434,1739878238306,-1303.66,0.00014068,2]
[353488435,1739878238316,-500.0,0.00014068,2]
[353488436,1739878238325,-500.0,0.00014068,2]
[353488437,1739878238338,-500.0,0.00014068,2]
[353488438,1739878238347,-500.0,0.00014068,2]
[353488439,1739878238356,-371.34,0.00014068,2]
[353488440,1739878238367,-260.92,0.00014068,2]
[353488441,1739878238377,-639.3,0.00014068,2]
[353488442,1739878238386,-500.0,0.00014068,2]
[353488443,1739878238395,-519.87,0.00014068,2]
[353488444,1739878238404,-362.84,0.00014068,2]
[353488445,1739878238413,-500.0,0.00014068,2]
[353488446,1739878238423,-500.0,0.00014068,2]
[353488447,1739878238432,-481.2,0.00014068,2]
[353488448,1739878238442,-500.0,0.00014068,2]
[353488449,1739878238451,-500.0,0.00014068,2]
[353488450,1739878238461,-500.0,0.00014068,2]
[353488451,1739878238470,-500.0,0.00014068,2]
[353488452,1739878238479,-1790.04,0.00014068,2]
[353488453,1739878238488,-500.0,0.00014068,2]
[353488454,1739878238498,-1305.31,0.00014068,2]
[353488455,1739878238508,-500.0,0.00014068,2]
[353488456,1739878238517,-500.0,0.00014068,2]
[353488457,1739878238527,-530.46,0.00014068,2]
[353488458,1739878238536,-500.0,0.00014068,2]
[353488460,1739878238546,-500.0,0.00014068,2]
[353488462,1739878238554,-447.8,0.00014068,2]
[353488463,1739878238564,-279.54,0.00014068,2]
[353488464,1739878238573,-500.0,0.00014068,2]
[353488465,1739878238583,-525.96,0.00014068,2]
[353488466,1739878238592,-189.36,0.00014069,2]
[353488467,1739878238602,-500.0,0.00014069,2]
[353488468,1739878238613,-500.0,0.00014069,2]
[353488469,1739878238622,-500.0,0.00014149,2]
[353488470,1739878238631,-500.0,0.00014149,2]
[353488471,1739878238641,-500.0,0.00014149,2]
[353488472,1739878238722,-1580.5,0.0001415,2]
[353488473,1739878238732,-396.73,0.0001415,2]
[353488474,1739878238741,-500.0,0.0001415,2]
[353488475,1739878238751,-587.19,0.0001415,2]
[353488476,1739878238760,-1303.66,0.0001415,2]
[353488477,1739878238770,-500.0,0.0001415,2]
[353488478,1739878238779,-500.0,0.0001415,2]
[353488479,1739878238788,-500.0,0.0001415,2]
[353488480,1739878238797,-500.0,0.0001415,2]
[353488481,1739878238807,-500.0,0.0001415,2]
[353488482,1739878238816,-519.87,0.0001415,2]
[353488483,1739878238826,-500.0,0.0001415,2]
[353488484,1739878238835,-500.0,0.0001415,2]
[353488485,1739878238844,-500.0,0.0001415,2]
[353488486,1739878238854,-431.34,0.0001415,2]
[353488487,1739878238864,-500.0,0.0001415,2]
[353488488,1739878238874,-500.0,0.0001415,2]
[353488489,1739878238886,-487.42,0.0001415,2]
[353488490,1739878238896,-1305.31,0.0001415,2]
[353488491,1739878238906,-500.0,0.0001415,2]
[353488492,1739878238915,-500.0,0.0001415,2]
[353488493,1739878238925,-500.0,0.0001415,2]
[353488494,1739878238935,-500.0,0.0001415,2]
[353488495,1739878238944,-497.1,0.00014151,2]
[353488496,1739878238954,-500.0,0.00014164,2]
[353488497,1739878238965,-500.0,0.00014231,2]
[353488498,1739878238975,-500.0,0.00014231,2]
[353488499,1739878238985,-500.0,0.00014231,2]
[353488500,1739878238994,-1580.5,0.00014232,2]
[353488501,1739878239003,-500.0,0.00014232,2]
[353488502,1739878239013,-587.19,0.00014232,2]
[353488503,1739878239023,-1303.66,0.00014232,2]
[353488504,1739878239033,-500.0,0.00014232,2]
[353488505,1739878239042,-491.3,0.00014232,2]
[353488506,1739878239051,-500.0,0.00014232,2]
[353488507,1739878239061,-500.0,0.00014232,2]
[353488508,1739878239071,-500.0,0.00014232,2]
[353488509,1739878239081,-519.87,0.00014232,2]
[353488510,1739878239090,-500.0,0.00014232,2]
[353488511,1739878239099,-500.0,0.00014232,2]
[353488512,1739878239110,-500.0,0.00014232,2]
[353488513,1739878239119,-500.0,0.00014232,2]
[353488514,1739878239129,-527.04,0.00014232,2]
[353488515,1739878239138,-1790.04,0.00014232,2]
[353488516,1739878239147,-1305.31,0.00014232,2]
[353488517,1739878239157,-588.98,0.00014232,2]
[353488518,1739878239167,-282.58,0.00014232,2]
[353488519,1739878239178,-500.0,0.00014232,2]
[353488520,1739878239187,-524.2,0.00014232,2]
[353488521,1739878239197,-500.0,0.00014232,2]
[353488522,1739878239207,-151.326,0.00014235,2]
[353488523,1739878239217,-500.0,0.00014313,2]
[353488524,1739878239227,-500.0,0.00014313,2]
[353488525,1739878239236,-500.0,0.00014313,2]
[353488526,1739878239246,-1580.5,0.00014314,2]
[353488527,1739878239256,-500.0,0.00014314,2]
[353488528,1739878239265,-587.19,0.00014314,2]
[353488529,1739878239275,-1303.66,0.00014314,2]
[353488530,1739878239285,-648.16,0.00014314,2]
[353488531,1739878239294,-500.0,0.00014314,2]
[353488532,1739878239303,-500.0,0.00014314,2]
[353488533,1739878239313,-500.0,0.00014314,2]
[353488534,1739878239322,-519.87,0.00014314,2]
[353488535,1739878239332,-500.0,0.00014314,2]
[353488536,1739878239341,-500.0,0.00014314,2]
[353488537,1739878239350,-500.0,0.00014314,2]
[353488538,1739878239360,-500.0,0.00014314,2]
[353488539,1739878239370,-1305.31,0.00014314,2]
[353488540,1739878239380,-500.0,0.00014314,2]
[353488541,1739878239390,-500.0,0.00014395,2]
[353488542,1739878239400,-500.0,0.00014395,2]
[353488543,1739878239409,-500.0,0.00014395,2]
[353488544,1739878239419,-1580.5,0.00014396,2]
[353488545,1739878239428,-500.0,0.00014396,2]
[353488546,1739878239438,-587.19,0.00014396,2]
[353488547,1739878239447,-1303.66,0.00014396,2]
[353488548,1739878239457,-500.0,0.00014396,2]
[353488549,1739878239467,-500.0,0.00014396,2]
[353488550,1739878239476,-500.0,0.00014396,2]
[353488551,1739878239486,-519.87,0.00014396,2]
[353488552,1739878239496,-500.0,0.00014396,2]
[353488553,1739878239505,-500.0,0.00014396,2]
[353488554,1739878239514,-500.0,0.00014396,2]
[353488555,1739878239523,-236.82,0.00014396,2]
[353488556,1739878239533,-1305.31,0.00014396,2]
[353488557,1739878239543,-500.0,0.00014396,2]
[353488558,1739878239553,-500.0,0.00014478,2]
[353488559,1739878239562,-264.82,0.00014478,2]
[353488560,1739878239572,-500.0,0.00014478,2]
[353488561,1739878239582,-1580.5,0.00014479,2]
[353488562,1739878239591,-500.0,0.00014479,2]
[353488563,1739878239601,-587.19,0.00014479,2]
[353488564,1739878239611,-1303.66,0.00014479,2]
[353488565,1739878239620,-308.96,0.00014479,2]
[353488566,1739878239630,-500.0,0.00014479,2]
[353488567,1739878239639,-500.0,0.00014479,2]
[353488568,1739878239648,-519.87,0.00014479,2]
[353488569,1739878239659,-500.0,0.00014479,2]
[353488570,1739878239668,-622.84,0.00014479,2]
[353488571,1739878239680,-500.0,0.00014479,2]
[353488572,1739878239692,-1305.31,0.00014479,2]
[353488573,1739878239705,-613.08,0.00014479,2]
[353488574,1739878239716,-500.0,0.0001456,2]
[353488575,1739878239728,-500.0,0.0001456,2]
[353488576,1739878239738,-1580.5,0.00014561,2]
[353488577,1739878239749,-500.0,0.00014561,2]
[353488578,1739878239761,-587.19,0.00014561,2]
[353488579,1739878239774,-1303.66,0.00014561,2]
[353488580,1739878239786,-500.0,0.00014561,2]
[353488581,1739878239798,-500.0,0.00014561,2]
[353488582,1739878239811,-519.87,0.00014561,2]
[353488583,1739878239822,-153.4,0.00014561,2]
[353488585,1739878239834,-500.0,0.00014561,2]
[353488587,1739878239846,-1790.04,0.00014561,2]
[353488588,1739878239857,-1305.31,0.00014561,2]
[353488589,1739878239870,-500.0,0.00014561,2]
[353488590,1739878239882,-613.42,0.00014642,2]
[353488591,1739878239894,-500.0,0.00014642,2]
[353488592,1739878239905,-1580.5,0.00014643,2]
[353488593,1739878239917,-500.0,0.00014643,2]
[353488594,1739878239929,-587.19,0.00014643,2]
[353488596,1739878239940,-1303.66,0.00014643,2]
[353488598,1739878239954,-500.0,0.00014643,2]
[353488599,1739878239966,-578.66,0.00014643,2]
[353488600,1739878239979,-519.87,0.00014643,2]
[353488601,1739878239989,-500.0,0.00014643,2]
[353488602,1739878239999,-1305.31,0.00014643,2]
[353488603,1739878240010,-500.0,0.00014724,2]
[353488604,1739878240022,-1580.5,0.00014725,2]
[353488605,1739878240033,-500.0,0.00014725,2]
[353488606,1739878240046,-587.19,0.00014725,2]
[353488607,1739878240058,-1303.66,0.00014725,2]
[353488608,1739878240070,-500.0,0.00014725,2]
[353488609,1739878240083,-519.87,0.00014725,2]
[353488610,1739878240094,-500.0,0.00014725,2]
[353488612,1739878240107,-1305.31,0.00014725,2]
[353488613,1739878240120,-500.0,0.00014806,2]
[353488614,1739878240132,-1580.5,0.00014807,2]
[353488615,1739878240145,-464.68,0.00014807,2]
[353488617,1739878240156,-587.19,0.00014807,2]
[353488618,1739878240167,-1303.66,0.00014807,2]
[353488619,1739878240177,-500.0,0.00014807,2]
[353488620,1739878240188,-519.87,0.00014807,2]
[353488621,1739878240199,-628.18,0.00014807,2]
[353488623,1739878240210,-1305.31,0.00014807,2]
[353488624,1739878240223,-500.0,0.00014889,2]
[353488625,1739878240236,-1580.5,0.0001489,2]
[353488626,1739878240249,-587.19,0.0001489,2]
[353488627,1739878240260,-1303.66,0.0001489,2]
[353488628,1739878240270,-280.26,0.0001489,2]
[353488629,1739878240282,-519.87,0.0001489,2]
[353488630,1739878240293,-1305.31,0.0001489,2]
[353488631,1739878240304,-1790.04,0.00014891,2]
[353488632,1739878240317,-500.0,0.00014971,2]
[353488634,1739878240327,-1580.5,0.00014972,2]
[353488635,1739878240338,-587.19,0.00014972,2]
[353488636,1739878240349,-1303.66,0.00014972,2]
[353488637,1739878240360,-519.87,0.00014972,2]
[353488638,1739878240371,-1305.31,0.00014972,2]
[353488639,1739878240382,-500.0,0.00014972,2]
[353488640,1739878240393,-500.0,0.00015053,2]
[353488641,1739878240408,-1580.5,0.00015054,2]
[353488642,1739878240422,-587.19,0.00015054,2]
[353488644,1739878240434,-1303.66,0.00015054,2]
[353488646,1739878240446,-519.87,0.00015054,2]
[353488647,1739878240458,-1305.31,0.00015054,2]
[353488648,1739878240469,-500.0,0.00015135,2]
[353488649,1739878240481,-1580.5,0.00015136,2]
[353488650,1739878240493,-587.19,0.00015136,2]
[353488651,1739878240504,-1303.66,0.00015136,2]
[353488652,1739878240515,-519.87,0.00015136,2]
[353488653,1739878240527,-1305.31,0.00015136,2]
[353488654,1739878240538,-500.0,0.00015217,2]
[353488655,1739878240550,-1580.5,0.00015218,2]
[353488656,1739878240561,-587.19,0.00015218,2]
[353488657,1739878240572,-1303.66,0.00015218,2]
[353488658,1739878240584,-519.87,0.00015218,2]
[353488659,1739878240595,-1305.31,0.00015218,2]
[353488660,1739878240606,-500.0,0.000153,2]
[353488661,1739878240620,-1580.5,0.00015301,2]
[353488662,1739878240632,-587.19,0.00015301,2]
[353488663,1739878240643,-1303.66,0.00015301,2]
[353488664,1739878240655,-519.87,0.00015301,2]
[353488665,1739878240666,-1305.31,0.00015301,2]
[353488666,1739878240677,-500.0,0.00015382,2]
[353488668,1739878240688,-1580.5,0.00015383,2]
[353488669,1739878240699,-587.19,0.00015383,2]
[353488670,1739878240710,-1303.66,0.00015383,2]
[353488671,1739878240721,-519.87,0.00015383,2]
[353488672,1739878240732,-1305.31,0.00015383,2]
[353488673,1739878240743,-500.0,0.00015464,2]
[353488674,1739878240754,-1580.5,0.00015465,2]
[353488675,1739878240766,-587.19,0.00015465,2]
[353488676,1739878240778,-1303.66,0.00015465,2]
[353488677,1739878240789,-519.87,0.00015465,2]
[353488678,1739878240800,-1305.31,0.00015465,2]
[353488679,1739878240914,-1790.04,0.00015466,2]
[353488680,1739878240925,-500.0,0.00015534,2]
[353488681,1739878240935,-614.15,0.00015546,2]
[353488682,1739878240945,-1580.5,0.00015547,2]
[353488683,1739878240954,-587.19,0.00015547,2]
[353488684,1739878240966,-1303.66,0.00015547,2]
[353488685,1739878240976,-519.87,0.00015547,2]
[353488686,1739878240986,-1305.31,0.00015547,2]
[353488687,1739878240996,-500.0,0.00015547,2]
[353488688,1739878241005,-1580.5,0.00015629,2]
[353488689,1739878241015,-587.19,0.00015629,2]
[353488690,1739878241024,-1303.66,0.00015629,2]
[353488691,1739878241035,-519.87,0.00015629,2]
[353488692,1739878241043,-1305.31,0.00015629,2]
[353488693,1739878241053,-1580.5,0.00015712,2]
[353488694,1739878241063,-587.19,0.00015712,2]
[353488695,1739878241072,-1303.66,0.00015712,2]
[353488696,1739878241082,-519.87,0.00015712,2]
[353488697,1739878241091,-1305.31,0.00015712,2]
[353488698,1739878241100,-400.0,0.00015775,2]
[353488699,1739878241109,-1580.7,0.00015794,2]
[353488700,1739878241119,-587.21,0.00015794,2]
[353488701,1739878241128,-1303.7,0.00015794,2]
[353488702,1739878241138,-519.95,0.00015794,2]
[353488703,1739878241147,-1305.51,0.00015794,2]
[353488704,1739878241156,-181.28445632,0.00015893,2]
[353488705,1739878241165,-499.0,0.00016164,2]
[353488706,1739878241174,-500.0,0.00016904,2]
[353488707,1739878241184,-150.0,0.00016933,2]
[353488708,1739878241194,-396.0,0.00016933,2]
[353488709,1739878241203,-538.0,0.00016933,2]
[353488710,1739878241213,-1844.169,0.00016933,2]
[353488711,1739878241222,-2291.0,0.00016933,2]
[353488712,1739878241231,-601.00226908,0.0001728,2]
[353488713,1739878241241,-499.0,0.00017534,4]
[353488714,1739878241250,-170.250237,0.0001764,15]
[353488715,1739878241260,-205.1832267,0.0001764,2]
[353488716,1739878241270,-22618.90496927,0.0001782,2]
[353488717,1739878241279,-1790.04,0.00017899,2]
[353488718,1739878241288,-3000.0,0.000179,2]
[353488719,1739878241297,-181.28445632,0.000179,2]
[353488720,1739878241307,-500.0,0.00017973,2]
[353488721,1739878241317,-500.0,0.00017998,2]
[353488722,1739878241326,-3796.0,0.00017999,7]
[353488723,1739878241336,-151.0,0.00017999,2]
[353488724,1739878241345,-1790.04,0.00017999,2]
[353488725,1739878241355,-1790.04,0.00017999,2]
[353488726,1739878241366,-1790.04,0.00017999,2]
[353488727,1739878241375,-1790.04,0.00017999,2]
[353488728,1739878241385,-1790.04,0.00017999,2]
[353488729,1739878241394,-1790.04,0.00017999,2]
[353488730,1739878241404,-1790.04,0.00017999,2]
[353488731,1739878241414,-1790.04,0.00017999,2]
[353488732,1739878241423,-1790.04,0.00017999,2]
[353488733,1739878241433,-1790.25663798,0.00017999,2]
[353488734,1739878241443,-500.0,0.00017999,2]
[353488735,1739878241452,-280.35,0.00017999,2]
[353488736,1739878241461,-8620.24442774,0.00018,5]
[353488737,1739878241470,-488.14522034,0.00018,5]
[353488738,1739878241480,-538.60003378,0.00018,10]
[353488739,1739878241490,-1797686.69400443,0.00018,15]
[353488769,1739878570428,400.0,9.041e-05,2]
[353488770,1739879134124,-158.8405508,0.00012645,2]
[353488771,1739879134146,-158.8405508,0.00012773,2]
[353488772,1739879134170,-158.8405508,0.00012902,2]
[353488773,1739879134198,-302.0223391,0.00012964,2]
[353488774,1739879134221,-30.7819519,0.00013762,2]
[353488775,1739879240172,-371.46743169,0.00013624,2]
[353488776,1739879241122,-96.09177883,0.00013624,2]
[353488777,1739879241145,-571.94370802,0.00013762,2]
[353488778,1739879244093,-710.60512793,0.00013762,2]
[353488779,1739879247077,-927.9109896,0.00013762,2]
[353488780,1739879247101,-300.0,0.00013899,2]
[353488781,1739879247125,-154.94027028,0.000139,2]
[353488817,1739879432761,-290.26031448,0.00013899,2]
[353488818,1739879432770,-228.3637674,0.00013899,2]
[353488819,1739879432780,-500.0,0.00013899,2]
[353488820,1739879432789,-306.65236742,0.00013899,2]
[353488821,1739879432813,-86.95401281,0.00013899,2]
[353488822,1739879432823,-500.0,0.000139,2]
[353488823,1739879432832,-500.0,0.000139,2]
[353488824,1739879432842,-500.0,0.000139,2]
[353488825,1739879432851,-500.0,0.000139,2]
[353488826,1739879432860,-500.0,0.000139,2]
[353488827,1739879432869,-500.0,0.000139,2]
[353488828,1739879432880,-500.0,0.000139,2]
[353488829,1739879432889,-500.0,0.000139,2]
[353488830,1739879432899,-500.0,0.000139,2]
[353488831,1739879432909,-70.60134239,0.000139,2]
[353488836,1739879438439,-442.70240253,0.000139,2]
[353488837,1739879438448,-500.0,0.000139,2]
[353488838,1739879438458,-500.0,0.000139,2]
[353488839,1739879438467,-512.04073648,0.000139,2]
[353488840,1739879438476,-500.0,0.000139,2]
[353488841,1739879438485,-500.0,0.000139,2]
[353488842,1739879438495,-500.0,0.000139,2]
[353488843,1739879438504,-500.0,0.000139,2]
[353488844,1739879438513,-500.0,0.000139,2]
[353488845,1739879438523,-500.0,0.000139,2]
[353488846,1739879438532,-500.0,0.000139,2]
[353488847,1739879438541,-500.0,0.000139,2]
[353488848,1739879438551,-477.20512883,0.000139,2]
[353488849,1739879438560,-500.0,0.000139,2]
[353488850,1739879438569,-500.0,0.000139,2]
[353488851,1739879438579,-500.0,0.000139,2]
[353488852,1739879438588,-500.0,0.000139,2]
[353488853,1739879438597,-500.0,0.000139,2]
[353488854,1739879438607,-500.0,0.000139,2]
[353488855,1739879438616,-587.19,0.000139,2]
[353488856,1739879438625,-500.0,0.000139,2]
[353488857,1739879438635,-500.0,0.000139,2]
[353488858,1739879438645,-500.0,0.000139,2]
[353488859,1739879438654,-500.0,0.000139,2]
[353488860,1739879438663,-500.0,0.000139,2]
[353488861,1739879438673,-500.0,0.000139,2]
[353488862,1739879438682,-500.0,0.000139,2]
[353488863,1739879438691,-500.0,0.000139,2]
[353488864,1739879438701,-500.0,0.000139,2]
[353488865,1739879438710,-500.0,0.000139,2]
[353488866,1739879438719,-500.0,0.000139,2]
[353488867,1739879438729,-500.0,0.000139,2]
[353488868,1739879438738,-500.0,0.000139,2]
[353488869,1739879438747,-500.0,0.000139,2]
[353488870,1739879438756,-500.0,0.000139,2]
[353488871,1739879438766,-537.02,0.000139,2]
[353488872,1739879438775,-500.0,0.000139,2]
[353488873,1739879438784,-500.0,0.000139,2]
[353488874,1739879438793,-348.23925961,0.000139,2]
[353488875,1739879438805,-151.76074039,0.000139,2]
[353488876,1739879438814,-118.43925961,0.000139,2]
[353488902,1739879443439,-381.56074039,0.000139,2]
[353488903,1739879443449,-118.02030983,0.000139,2]
[353488904,1739879443461,-54.32379976,0.000139,2]
[353488905,1739879443470,-500.0,0.000139,2]
[353488906,1739879443479,-500.0,0.000139,2]
[353488908,1739879443488,-115.85264954,0.000139,2]
[353488910,1739879443500,-384.14735046,0.000139,2]
[353488912,1739879443509,-500.0,0.000139,2]
[353488913,1739879443519,-228.48072749,0.000139,2]
[353488927,1739879446470,-271.51927251,0.000139,2]
[353488928,1739879446480,-500.0,0.000139,2]
[353488929,1739879446490,-500.0,0.000139,2]
[353488930,1739879446500,-500.0,0.000139,2]
[353488931,1739879446509,-194.28072749,0.000139,2]
[353488932,1739879446522,-305.71927251,0.000139,2]
[353488933,1739879446532,-125.29959487,0.000139,2]
[353488934,1739879446546,-374.70040513,0.000139,2]
[353488935,1739879446559,-500.0,0.000139,2]
[353488936,1739879446571,-500.0,0.000139,2]
[353488937,1739879446583,-500.0,0.000139,2]
[353488938,1739879446596,-500.0,0.000139,2]
[353488939,1739879446608,-71.67459487,0.000139,2]